Workbook

Sheet Backpacking
A1: Trip length
B2: Days = | C2: 0 | D2: this is set up to require days to be entered | H2: calories per day = | J2: 1500 | M2: Enter red | O2: figures in
B3: Days = | C3: 7 | D3: this is set up to require days to be entered | H3: calories per day = | J3: 1500 | M3: items
B6: Weeks = | C6: =(C2+C3)/7 -> 1 | H6: calorie factor = | J6: =(J2*C2+J3*C3)/(1500*(C2+C3)) -> 1 | O6: this column
B7: Months = | C7: =(C2+C3)*12/365 -> 0.2301369863 | O7: from the web
B9: #people= | C9: 1 | D9: one to four
H10: #food stuff sacks = | J10: 1 | K10: sm + lg | O10: or label
A11: Travel-camping material is in a blue font
A13: Class | B13: Sub-class | N13: all weights are per person | T13: Modifications to consider
A14: Food | B14: Meal | D14: 1=take, 0=no | E14: unit | F14: oz/unit | G14: units/day | H14: units /week | I14: units/month | J14: weeks | K14: /trip | L14: units (total) | M14: oz (total) | N14: lb | O14: cal/oz | P14: cal/week | Q14: cal/day | R14: cal/lb | U14: For a long trip, hike days at 2,500+ cal, others at 1,500 - 2000
A15: =(J2*C2+J3*C3)/(C2+C3) -> 1500 | B15: Breakfast | U15: More than one person, assuming similar personal gear…
A16: mean cal/day | C16: Granola (~116 cal/oz) | D16: 1 | E16: cup | F16: 4 | H16: =5*J6 -> 5 | J16: =C6 -> 1 | L16: =M16/F16 -> 5 | M16: =D16*F16*H16*J16 -> 20 | N16: =M16/16 -> 1.25 | O16: 116 | P16: =J16*H16*F16*O16*D16 -> 2320 | Q16: =P16/7 -> 331.4285714 | R16: =O16*16 -> 1856 | V16: … and shared gear, e.g., one stove / four people
C17: Milk powder | D17: 0 | E17: cup | F17: 6.5 | H17: =J6 -> 1 | J17: =C6 -> 1 | L17: =M17/F17 -> 0 | M17: =D17*F17*H17*J17 -> 0 | N17: =M17/16 -> 0 | O17: 100 | P17: =J17*H17*F17*O17*D17 -> 0 | Q17: =P17/7 -> 0 | R17: =O17*16 -> 1600
C18: Milkman | D18: 1 | E18: packet | F18: 3.44 | H18: =ROUNDUP((C2+C3)/4,0) -> 2 | L18: =H18*C6*D18 -> 2 | M18: =D18*H18*3.44 -> 6.88 | N18: 0.43 | O18: 100 | P18: =O18*M18 -> 688 | Q18: =P18/7 -> 98.28571429 | R18: 1600
A19: =C2+C3 -> 7 | C19: Coffee | D19: 1 | E19: oz | F19: 1 | G19: 1 | H19: =G19*7 -> 7 | J19: =C6 -> 1 | L19: 7 | M19: =D19*F19*H19*J19 -> 7 | N19: 0.4375 | P19: =J19*H19*F19*O19 -> 0 | Q19: 0 | R19: 0
A20: days | G20: (5 sm tbsp)
C21: Coffee, freeze dried, consider
C22: Sugar (~110 cal/oz) | D22: 1 | E22: oz | F22: 1 | H22: 7 | J22: =C6 -> 1 | L22: =M22/F22 -> 7 | M22: =D22*F22*H22*J22 -> 7 | N22: 0.4375 | O22: 110 | P22: =J22*H22*F22*O22*D22 -> 770 | Q22: 110 | R22: 1760
C23: Vitamins, meds, ibuprofen | D23: 1 | E23: oz | F23: 1 | H23: 2.5 | J23: =C6 -> 1 | L23: =M23/F23 -> 2.5 | M23: =D23*F23*H23*J23 -> 2.5 | N23: =M23/16 -> 0.15625 | P23: =J23*H23*F23*O23 -> 0 | Q23: 0 | R23: 0 | T23: qd-4 ibu 1 allegra 100mg losartan 25 mg hctz 1(b,C,D,E,Glucosamine, Multi)
C24: Teas, drinks | D24: 1 | E24: oz | F24: 1 | H24: 1.5 | J24: =C6 -> 1 | L24: 1.5 | M24: =D24*F24*H24*J24 -> 1.5 | N24: =M24/16 -> 0.09375 | P24: 0 | Q24: 0 | R24: 0
C25: Condensed milk | D25: 0 | E25: can | F25: 14 | H25: 2 | J25: 1 | M25: =D25*F25*H25*J25 -> 0 | N25: =M25/16 -> 0 | P25: 0 | Q25: 0 | R25: 0
B26: Trail | P26: 0 | Q26: 0 | R26: 0
C27: Sesame sticks | D27: 1 | E27: fist | F27: 1.333333333 | H27: =4*J6 -> 4 | J27: =C6 -> 1 | L27: =M27/F27 -> 4 | M27: =D27*F27*H27*J27 -> 5.333333333 | N27: =M27/16 -> 0.3333333333 | O27: 155 | P27: =J27*H27*F27*O27*D27 -> 826.6666667 | Q27: 118.0952381 | R27: 2480
C28: Nuts (Peanuts, Cashews ~160 cal/oz) | D28: 1 | E28: fist | F28: 1.666666667 | H28: =4*J6 -> 4 | J28: =C6 -> 1 | L28: =M28/F28 -> 4 | M28: =D28*F28*H28*J28 -> 6.666666667 | N28: 0.4166666667 | O28: 160 | P28: =J28*H28*F28*O28*D28 -> 1066.666667 | Q28: 152.3809524 | R28: 2560
C29: Dried fruit | D29: 1 | E29: fist | F29: 2.166666667 | H29: =4*J6 -> 4 | J29: =C6 -> 1 | L29: 4 | M29: =D29*F29*H29*J29 -> 8.666666667 | N29: 0.5416666667 | O29: 100 | P29: =J29*H29*F29*O29*D29 -> 866.6666667 | Q29: 123.8095238 | R29: 1600
B30: Dinner | P30: 0 | Q30: 0 | R30: 0
C31: Rice, instant | D31: 1 | E31: fist | F31: 1.333333333 | H31: =ROUNDDOWN((7-H34+2)*J6,0) -> 7 | J31: =C6 -> 1 | L31: =M31/F31 -> 7 | M31: =D31*F31*H31*J31 -> 9.333333333 | N31: =M31/16 -> 0.5833333333 | O31: 115 | P31: =J31*H31*F31*O31*D31 -> 1073.333333 | Q31: 153.3333333 | R31: 1840
C32: Rice, regular, to work on
C33: Beans | D33: 1 | E33: fist | F33: 1.666666667 | H33: =ROUNDDOWN((6-H34+2)*J6,0) -> 6 | J33: =C6 -> 1 | L33: =M33/F33 -> 6 | M33: 10 | N33: =M33/16 -> 0.625 | O33: 102 | P33: =J33*H33*F33*O33*D33 -> 1020 | Q33: 145.7142857 | R33: 1632
C34: Ramen | D34: 1 | E34: packet | F34: 2.5 | H34: =ROUNDUP(2*J6,0) -> 2 | J34: =C6 -> 1 | L34: =M34/F34 -> 2 | M34: 5 | N34: 0.3125 | O34: 102 | P34: =J34*H34*F34*O34*D34 -> 510 | Q34: 72.85714286 | R34: 1632
C35: Broths | D35: 1 | E35: packet | F35: 0.5 | H35: =ROUNDUP(2*J6,0) -> 2 | J35: =C6 -> 1 | L35: =M35/F35 -> 2 | M35: 1 | N35: 0.0625 | O35: 70 | P35: =J35*H35*F35*O35*D35 -> 70 | Q35: 10 | R35: 1120
C36: Jerky | D36: 1 | E36: packet | F36: 3 | H36: =ROUNDUP(J6,0) -> 1 | J36: =C6 -> 1 | L36: 1 | M36: 3 | N36: 0.1875 | O36: 116 | P36: =J36*H36*F36*O36*D36 -> 348 | Q36: 49.71428571 | R36: 1856
C37: Fruit bars | D37: 1 | E37: bar | F37: 1.2 | H37: =ROUNDUP(5*J6,0) -> 5 | J37: =C6 -> 1 | L37: 5 | M37: 6 | N37: 0.375 | O37: 100 | P37: =J37*H37*F37*O37*D37 -> 600 | Q37: 85.71428571 | R37: 1600
C38: Turmeric | D38: 0 | E38: oz | F38: 1 | H38: 1 | J38: =C6 -> 1 | L38: 0 | M38: 0 | N38: 0 | P38: 0 | Q38: 0 | R38: 0
C39: Jalapenos | D39: 1 | E39: jalapeno | F39: 0.5 | H39: 2 | J39: =C6 -> 1 | L39: 2 | M39: 1 | N39: 0.0625 | P39: 0 | Q39: 0 | R39: 0
C40: Garlic, packets | D40: 1 | E40: packet | F40: 1.5 | H40: 1 | J40: =C6 -> 1 | L40: =ROUNDUP(M40/F40,0) -> 1 | M40: 1.5 | N40: 0.09375 | P40: 0 | Q40: 0 | R40: 0
C41: Onion, thumb dia | D41: 1 | E41: onion | F41: 6 | H41: 1 | J41: =C6 -> 1 | L41: 1 | M41: 6 | N41: 0.375 | P41: 0 | Q41: 0 | R41: 0
C42: Spices (review) | D42: 1 | E42: oz | F42: 1 | H42: 3 | J42: =C6 -> 1 | L42: 3 | M42: 3 | N42: 0.1875 | P42: 0 | Q42: 0 | R42: 0
C43: Salt | D43: 1 | E43: oz | F43: 1 | H43: 2 | J43: =C6 -> 1 | L43: 2 | M43: 2 | N43: 0.125 | P43: 0 | Q43: 0 | R43: 0
C44: Veg oil (~240 cal/oz) | D44: 1 | E44: oz | F44: 1 | H44: =2*J6 -> 2 | J44: =C6 -> 1 | L44: 2 | M44: 2 | N44: 0.125 | O44: 240 | P44: =J44*H44*F44*O44*D45 -> 480 | Q44: 68.57142857 | R44: 3840
B45: Stuff sacks | D45: 1 | E45: sack | F45: 4.5 | K45: =J10 -> 1 | L45: =M45/F44 -> 4.5 | M45: =D45*F45*K45 -> 4.5 | N45: 0.28125 | P45: =SUM(P16:P44) -> 10639.33333 | Q45: 1519.904762 | R45: =P45/N46 -> 1419.997776
A46: Food, total (one person) | M46: =SUM(M16:M45) -> 119.88 | N46: =M46/16 -> 7.4925
A48: Cooking...
C49: Utensils | D49: 1 | E49: item(s) | F49: 8.5 | K49: 1 | M49: =D49*F49 -> 8.5 | N49: =M49/16 -> 0.53125
C50: Stove-MSR Dragonfly | D50: 1 | E50: item(s) | F50: 14.5 | K50: 1 | M50: =D50*F50*K50/C9 -> 14.5 | N50: =M50/16 -> 0.90625
C51: Heat shield | D51: 1 | E51: item(s) | F51: 2.5 | K51: 1 | M51: =D51*F51*K51/C9 -> 2.5 | N51: 0.15625
C52: Pot, titanium | D52: 1 | E52: item(s) | F52: 8 | K52: 1 | M52: =D52*F52*K52/C9 -> 8 | N52: 0.5
C53: Pot, stainless, 0.50 gal | D53: 0 | E53: item(s) | F53: 20 | K53: 1 | M53: =D53*F53*K53/C9 -> 0 | N53: 0
C54: Pot, stainless, 0.25 gal | D54: 0 | E54: item(s) | F54: 13 | K54: 1 | M54: =D54*F54*K54/C9 -> 0 | N54: 0
C55: Fuel bottle, 1 l tr/ 33oz | D55: =ROUNDUP(C6,0) -> 1 | E55: item(s) | F55: 7.6 | K55: =ROUNDUP(H59*C9/32,0) -> 1 | M55: =D55*F55*K55/C9 -> 7.6 | N55: =M55/16 -> 0.475
C56: Fuel bottle, 591 ml / 20oz | D56: =0 -> 0 | E56: item(s) | F56: 6 | K56: 1 | M56: 0 | N56: =M56/16 -> 0
C57: Fuel bottle, 325 ml / 11oz | D57: 0 | E57: item(s) | F57: 4 | K57: 1 | M57: 0 | N57: =M57/16 -> 0
C59: Fuel | E59: fl oz | F59: 0.7 | H59: =(32*(1+(C9-1)*0.5)*C6)/C9 -> 32 | M59: =F59*H59 -> 22.4 | N59: =M59/16 -> 1.4
C61: MSR Pocket Rocket Deluxe (get?) | D61: 0 | E61: item(s) | F61: 2.9 | G61: currently, a one person item | K61: 1 | M61: =D61*F61 -> 0 | N61: =M61/16 -> 0
C62: MSR 16 oz cannister-ask at Ad-Edge | D62: 0 | E62: item(s) | F62: 16 | G62: currently, a one person item | K62: 1 | M62: =D62*F62 -> 0 | N62: =M62/16 -> 0
A63: Cooking… total | M63: =SUM(M49:M59) -> 63.5 | N63: 3.96875
A65: Hiking, travel | I65: include in pack weight, 0 = no
C66: Backpack, Osprey, Ejos | D66: 1 | E66: item(s) | F66: 43 | I66: 1 | M66: =D66*F66*I66 -> 43 | N66: =M66/16 -> 2.6875
C67: Pack Cover, Osprey, Large | D67: 0 | E67: item(s) | F67: 3 | I67: 1 | M67: 0 | N67: =M67/16 -> 0
C68: Backpack, Osprey, Argon 85M | D68: 0 | E68: item(s) | F68: 104 | I68: 1 | M68: 0 | N68: =M68/16 -> 0
C69: Olive Jansport daypack | D69: 0 | E69: item(s) | F69: 17 | I69: 1 | M69: 0 | N69: =M69/16 -> 0
C70: Binoculars | D70: 0 | E70: item(s) | F70: 8.5 | I70: 1 | M70: 0 | N70: =M70/16 -> 0
C71: Rifle, .30-06 | D71: 0 | E71: item(s) | F71: 144 | I71: 1 | M71: 0 | N71: =M71/16 -> 0
C72: Shoes, ankle high | D72: 0 | E72: item(s) | F72: 48 | I72: 0 | M72: 0 | N72: 0
C73: Shoes, running | D73: 1 | E73: item(s) | F73: 30 | I73: 0 | M73: 0 | N73: 0
C74: Sneakers | D74: 0 | E74: item(s) | F74: 29 | I74: 1 | M74: 0 | N74: 0
C75: Sandals | D75: 1 | E75: item(s) | F75: 19 | I75: 1 | M75: 19 | N75: 1.1875
C76: Shoes, dress | D76: 0 | E76: item(s) | F76: 26 | I76: 1 | M76: 0 | N76: =M76/16 -> 0
C77: MSR Snowshoes | D77: 0 | E77: item(s) | F77: 59 | I77: 1 | M77: 0 | N77: 0
C78: … MSR Snowshoe extebsuibs | D78: 0 | E78: item(s) | F78: 17 | I78: 1 | M78: 0 | N78: 0
C79: Cross-country skis and poles | D79: 0 | E79: item(s) | F79: 118 | I79: 1 | M79: 0 | N79: 0
C80: Crampons | D80: 0 | E80: item(s) | F80: 40.75 | I80: 1 | M80: 0 | N80: 0
C81: Trekking poles, Leki | D81: 1 | E81: item(s) | F81: 20 | I81: 1 | M81: 20 | N81: =M81/16 -> 1.25
C82: Insect netting | D82: 1 | E82: item(s) | F82: 1.5 | I82: 1 | M82: 1.5 | N82: 0.09375
C83: Pouch-misc items | D83: 1 | E83: item(s) | F83: 16.5 | I83: 1 | M83: 16.5 | N83: 1.03125
C84: Albuterol | D84: 0 | E84: item(s) | F84: 1.5 | I84: 1 | M84: 0 | N84: 0
C85: Maps, paper | D85: 1 | E85: item(s) | F85: 9.5 | I85: 1 | M85: 9.5 | N85: 0.59375
C86: Simple manual | D86: 2 | E86: item(s) | F86: 1 | I86: 1 | M86: 2 | N86: 0.125
C87: Camera | D87: 1 | E87: item(s) | F87: 6.5 | I87: 1 | M87: 6.5 | N87: 0.40625
C88: Phone | D88: 1 | E88: item(s) | F88: 3.5 | I88: 1 | M88: 3.5 | N88: 0.21875
C89: Cards, check, cash, key | D89: 1 | E89: item(s) | F89: 2 | I89: 1 | M89: 2 | N89: 0.125
C90: Batteries | D90: 1 | E90: item(s) | F90: 4.5 | I90: 1 | M90: 4.5 | N90: =M90/16 -> 0.28125
C91: Watch | D91: 1 | E91: item(s) | F91: 2 | I91: 1 | M91: 2 | N91: 0.125
C92: Plastic bags | D92: 1 | E92: item(s) | F92: 0.5 | I92: 1 | M92: 0.5 | N92: 0.03125
C94: H2O filter straw | D94: 1 | E94: item(s) | F94: 2 | I94: 1 | M94: =D94*F94*I94 -> 2 | N94: 0.125
C95: 64 oz Platypus H2O bladder | D95: 1 | E95: item(s) | F95: 6 | I95: 1 | M95: =D95*F95*I95 -> 6 | N95: 0.375
C96: 32 oz Nalgene H2O bottle | D96: 1 | E96: item(s) | F96: 7 | I96: 1 | M96: =D96*F96*I96 -> 7 | N96: 0.4375
C97: H2O for platypus | D97: 0 | E97: oz | F97: 1 | G97: 64 | I97: 1 | M97: =D97*F97*G97*I97 -> 0 | N97: 0
C98: H2O for nalgene | D98: 1 | E98: oz | F98: 1 | G98: 32 | I98: 1 | M98: =D98*F98*G98*I98 -> 32 | N98: 2
A99: Hiking, total | M99: =SUM(M66:M98) -> 177.5 | N99: 11.09375
A101: Camping
C102: Tent (Nemo, Elite 1p) + footprint | D102: 1 | E102: items(s) | F102: 39 | M102: =D102*F102 -> 39 | N102: =M102/16 -> 2.4375 | O102: take only if one person
C103: Tent (Sierra Designs, Flashlight) | D103: 0 | E103: items(s) | F103: 78 | M103: =D103*F103/2 -> 0 | N103: 0 | O103: take if two people
C104: Bivvy | D104: 0 | E104: items(s) | F104: 17 | M104: =D104*F104 -> 0 | N104: 0 | O104: take only if one person
C105: Bivvy - OR | D105: 0 | E105: items(s) | F105: 21 | M105: =D105*F105 -> 0 | N105: 0 | O105: take only if one person
C106: Tarp 9'x9' | D106: 0 | E106: items(s) | F106: 33 | M106: =D106*F106 -> 0 | N106: 0
C107: Tarp 8'x8' | D107: 0 | E107: items(s) | F107: 25 | M107: =D107*F107 -> 0 | N107: 0
C108: Ground sheet (separate) | D108: 0 | E108: items(s) | F108: 13 | M108: =D108*F108 -> 0 | N108: 0
C109: Footprint - MSR
C110: Sleeping bag, Western Mntnring | D110: 1 | E110: items(s) | F110: 18 | M110: =D110*F110 -> 18 | N110: =M110/16 -> 1.125
C111: Sleeping bag, Marmot | D111: 0 | E111: items(s) | F111: 34 | M111: 0 | N111: =M111/16 -> 0
C112: Air mattress | D112: 1 | E112: items(s) | F112: 14.5 | M112: 14.5 | N112: 0.90625
C113: Rope, straps | D113: 1 | E113: items(s) | F113: 3.5 | M113: 3.5 | N113: 0.21875
C114: Med sack | D114: 1 | E114: items(s) | F114: 16 | M114: 16 | N114: 1
C115: Toilet | D115: 1 | E115: items(s) | F115: 3.5 | M115: 3.5 | N115: 0.21875
A116: Camping, total | M116: =SUM(M102:M115) -> 94.5 | N116: 5.90625
A118: Clothes | B118: * summer, general | D118: Count | G118: 1=take, 0=no | I118: include in pk wt, 0=no
C119: Lite cap shirt* | D119: 1 | E119: item(s) | F119: 4.25 | G119: 1 | I119: 1 | M119: =D119*F119*G119*I119 -> 4.25 | N119: =M119/16 -> 0.265625
C120: Lite cap shirt, tee / long sleeve* | D120: 1 | E120: item(s) | F120: 4.25 | G120: 1 | I120: 1 | M120: 4.25 | N120: =M120/16 -> 0.265625
C121: Cap shirt, grey, hooded* | D121: 1 | E121: item(s) | F121: 5.5 | G121: 1 | I121: 1 | M121: 5.5 | N121: 0.34375
C122: Steel grey warm shirt* | D122: 1 | E122: item(s) | F122: 10 | G122: 1 | I122: 0 | M122: 0 | N122: 0
C123: Mid wt cap z-neck | D123: 1 | E123: item(s) | F123: 9 | G123: 0 | I123: 1 | M123: 0 | N123: 0
C124: Collared shirt | D124: 1 | E124: item(s) | F124: 8 | G124: 0 | I124: 1 | M124: 0 | N124: 0
C125: Blk wind wall jacket, N Face | D125: 1 | E125: item(s) | F125: 26.5 | G125: 0 | I125: 1 | M125: 0 | N125: 0
C126: Blk lined jacket, N Face | D126: 1 | E126: item(s) | F126: 18 | G126: 0 | I126: 1 | M126: 0 | N126: 0
C127: Red wind wall jacket, Marmot | D127: 1 | E127: item(s) | F127: 23.5 | G127: 0 | I127: 1 | M127: 0 | N127: 0
C128: Rain jacket, Marmot* | D128: 1 | E128: item(s) | F128: 12.25 | G128: 1 | I128: 1 | M128: 12.25 | N128: 0.765625
C129: Rain jacket, Columbia | D129: 0 | E129: item(s) | F129: 18 | G129: 0 | I129: 1 | M129: 0 | N129: 0
C130: Down jacket, blue | D130: 0 | E130: item(s) | F130: 24 | G130: 0 | I130: 1 | M130: 0 | N130: =M130/16 -> 0
C131: Dress jacket | D131: 0 | E131: item(s) | F131: 26.5 | G131: 0 | I131: 1 | M131: 0 | N131: 0
C132: Gloves, lite | D132: 1 | E132: item(s) | F132: 1 | G132: 1 | I132: 1 | M132: 1 | N132: 0.0625
C133: Sun-visor* | D133: 1 | E133: item(s) | F133: 2 | G133: 1 | I133: 1 | M133: 2 | N133: =M133/16 -> 0.125
C134: Hat | D134: 1 | E134: item(s) | F134: 5 | G134: 0 | I134: 1 | M134: 0 | N134: 0
C135: Lite cap long u'wear* | D135: 1 | E135: item(s) | F135: 4 | G135: 1 | I135: 0 | M135: 0 | N135: 0
C136: Lite cap long u'wear, spare* | D136: 1 | E136: item(s) | F136: 4 | G136: 1 | I136: 1 | M136: =D136*F136*G136*I136 -> 4 | N136: 0.25
C137: Mid wt cap u'wear | D137: 1 | E137: item(s) | F137: 8 | G137: 0 | I137: 1 | M137: =D137*F137*G137*I137 -> 0 | N137: 0
C138: Short u'wear* | D138: 1 | E138: item(s) | F138: 4 | G138: 1 | I138: 1 | M138: =D138*F138*G138*I138 -> 4 | N138: 0.25
C139: Shorts* | D139: 1 | E139: item(s) | F139: 9 | G139: 1 | I139: 1 | M139: 9 | N139: 0.5625
C140: Hiking pants* | D140: 1 | E140: item(s) | F140: 16 | G140: 1 | I140: 0 | M140: 0 | N140: 0
C141: Belt* | D141: 1 | E141: item(s) | F141: 2 | G141: 1 | I141: 0 | M141: 0 | N141: 0
C142: Jeans | D142: 1 | E142: item(s) | F142: 24 | G142: 0 | I142: 1 | M142: 0 | N142: 0
C143: Rain pants* | D143: 1 | E143: item(s) | F143: 9 | G143: 1 | I143: 1 | M143: 9 | N143: 0.5625
C144: Heavy socks*, wear on travel | D144: 1 | E144: item(s) | F144: 4.5 | G144: 1 | I144: 0 | M144: 0 | N144: 0
C145: Heavy socks* | D145: 1 | E145: item(s) | F145: 4.5 | G145: 1 | I145: 1 | M145: =D145*F145*G145*I145 -> 4.5 | N145: 0.28125
C146: Intermediate sox | D146: 1 | E146: item(s) | F146: 3 | G146: 0 | I146: 1 | M146: =D146*F146*G146*I146 -> 0 | N146: 0
C147: Lite sox* | D147: 1 | E147: item(s) | F147: 2 | G147: 1 | I147: 1 | M147: 2 | N147: 0.125
C148: Bandana* | D148: 1 | E148: item(s) | F148: 1 | G148: 1 | I148: 0 | M148: 0 | N148: 0
C149: MSR Towel* | D149: 1 | E149: item(s) | F149: 2 | G149: 1 | I149: 1 | M149: 2 | N149: 0.125
C150: Stuff sack* | D150: 1 | E150: item(s) | F150: 2 | G150: 1 | I150: 1 | M150: 2 | N150: 0.125
C151: … sack liner* | D151: 1 | E151: item(s) | F151: 1 | G151: 1 | I151: 1 | M151: 1 | N151: 0.0625
C152: … sack straps* | D152: 1 | E152: item(s) | F152: 1 | G152: 1 | I152: 1 | M152: 1 | N152: 0.0625
A153: Clothes, total | M153: =SUM(M119:M152) -> 67.75 | N153: 4.234375
A155: Total pack | M155: =M46+M63+M99+M116+M153 -> 523.13 | N155: =M155/16 -> 32.695625

Sheet Travel-camping
A1: Trip length
B2: Days = | C2: =C3*7 -> 7
B3: Weeks = | C3: 1
B4: Months = | C4: =C3/4.35 -> 0.2298850575
A6: Travel-camping material is in a blue font; the numbers here are mostly over and above the numbers for backpacking; obviously much streamlining is possible and needed
A8: Class | B8: Sub-class
A9: Food | B9: Meal | D9: 1=take, 0=no | E9: unit | F9: oz/unit | G9: units/day | H9: /week | I9: /month | J9: weeks | K9: /trip | L9: oz (total) | M9: lb
B10: Breakfast
C11: Granola | D11: 0 | E11: cup | F11: 4 | H11: 5 | J11: =C3 -> 1 | L11: =D11*F11*H11*J11 -> 0 | M11: =L11/16 -> 0
C12: Milk powder | D12: 0 | E12: cup | F12: 6.5 | H12: 1 | J12: =C3 -> 1 | L12: =D12*F12*H12*J12 -> 0 | M12: =L12/16 -> 0
C13: Coffee | D13: 1 | E13: oz | F13: 1 | G13: 5 tbsp | H13: 10 | J13: =C3 -> 1 | L13: 10 | M13: 0.625
C14: Sugar | D14: 1 | E14: oz | F14: 1 | H14: 7 | J14: =C3 -> 1 | L14: 7 | M14: 0.4375
C15: Vitamins, meds, xtra ibuprofen | D15: 1 | E15: oz | F15: 1 | H15: 3.25 | J15: =C3 -> 1 | L15: 3.25 | M15: =L15/16 -> 0.203125
C16: Teas, drinks | D16: 0 | E16: oz | F16: 1 | K16: 1.5 | L16: =D16*F16*K16 -> 0 | M16: =L16/16 -> 0
C17: Condensed milk | D17: 1 | E17: can | F17: 14 | H17: 2 | J17: 1 | L17: =D17*F17*H17*J17 -> 28 | M17: =L17/16 -> 1.75
B18: Trail
C19: Sesame sticks | D19: 1 | E19: fist | F19: 1.333333333 | H19: 4 | J19: =C3 -> 1 | L19: 5.333333333 | M19: =L19/16 -> 0.3333333333
C20: Nuts | D20: 1 | E20: fist | F20: 1.666666667 | H20: 4 | J20: =C3 -> 1 | L20: 6.666666667 | M20: 0.4166666667
C21: Dried fruit | D21: 1 | E21: fist | F21: 2.166666667 | H21: 4 | J21: =C3 -> 1 | L21: 8.666666667 | M21: 0.5416666667
B22: Dinner
C23: Rice, instant | D23: 0 | E23: fist | F23: 1.333333333 | H23: 7 | J23: =C3 -> 1 | L23: 0 | M23: =L23/16 -> 0
C24: Beans | D24: 0 | E24: fist | F24: 1.666666667 | H24: 6 | J24: =C3 -> 1 | L24: 0 | M24: =L24/16 -> 0
C25: Ramen | D25: 1 | E25: packet | F25: 2.5 | H25: 5 | J25: =C3 -> 1 | L25: 12.5 | M25: 0.78125
C26: Broths | D26: 1 | E26: packet | F26: 0.5 | H26: 2 | J26: =C3 -> 1 | L26: 1 | M26: 0.0625
C27: Jerky | D27: 0 | E27: packet | F27: 3 | H27: 1 | J27: =C3 -> 1 | L27: 0 | M27: 0
C28: Fruit bars | D28: 1 | E28: bar | F28: 1.2 | H28: 5 | J28: =C3 -> 1 | L28: 6 | M28: 0.375
C29: Turmeric | D29: 1 | E29: oz | F29: 1 | H29: 1 | J29: =C3 -> 1 | L29: 1 | M29: 0.0625
C30: Jalapenos | D30: 0 | E30: jalapeno | F30: 0.5 | H30: 2 | J30: =C3 -> 1 | L30: 0 | M30: 0
C31: Garlic, packets | D31: 0 | E31: packet | F31: 1.5 | H31: 1 | J31: =C3 -> 1 | L31: 0 | M31: 0
C32: Onion, thumb dia | D32: 0 | E32: onion | F32: 6 | H32: 1 | J32: =C3 -> 1 | L32: 0 | M32: 0
C33: Spices | D33: 0 | E33: oz | F33: 0.5 | H33: 3 | J33: =C3 -> 1 | L33: 0 | M33: 0
C34: Salt | D34: 1 | E34: oz | F34: 1 | H34: 2 | J34: =C3 -> 1 | L34: 2 | M34: 0.125
C35: Veg oil | D35: 0 | E35: oz | F35: 1 | H35: 2 | J35: =C3 -> 1 | L35: 0 | M35: 0
B36: Stuff sacks | D36: 0 | E36: sack | F36: 4 | K36: 1 | L36: =D36*F36*K36 -> 0 | M36: 0
A37: Food, total | L37: =SUM(L11:L36) -> 91.41666667 | M37: =L37/16 -> 5.713541667
A39: Cooking... | D39: Count
C40: Utensils | D40: 0 | E40: item(s) | F40: 8.5 | K40: 1 | L40: =D40*F40 -> 0 | M40: =L40/16 -> 0
C42: Stove-MSR Dragonfly | D42: 0 | E42: item(s) | F42: 14.5 | K42: 1 | L42: =D42*F42 -> 0 | M42: =L42/16 -> 0
C43: Heat shield | D43: 0 | E43: item(s) | F43: 2.5 | K43: 1 | L43: 0 | M43: 0
C44: Pot, titanium | D44: 0 | E44: item(s) | F44: 8 | K44: 1 | L44: 0 | M44: 0
C45: Pot, stainless, 0.50 gal | D45: 0 | E45: item(s) | F45: 20 | K45: 1 | L45: 0 | M45: 0
C46: Pot, stainless, 0.25 gal | D46: 0 | E46: item(s) | F46: 13 | K46: 1 | L46: 0 | M46: 0
C47: Fuel bottle, 1 l tr/ 33oz | D47: 0 | E47: item(s) | F47: 7.6 | K47: 1 | L47: =D47*F47 -> 0 | M47: =L47/16 -> 0
C48: Fuel bottle, 591 ml / 20oz | D48: 1 | E48: item(s) | F48: 6 | K48: 1 | L48: =D48*F48 -> 6 | M48: =L48/16 -> 0.375
C49: Fuel bottle, 325 ml / 11oz | D49: 0 | E49: item(s) | F49: 4 | K49: 1 | L49: =D49*F49 -> 0 | M49: =L49/16 -> 0
C51: Fuel | E51: fl oz | F51: 0.7 | H51: 32 | L51: =F51*H51 -> 22.4 | M51: =L51/16 -> 1.4
C53: MSR Pocket Rocket (get?) | D53: 0 | E53: item(s) | F53: 2.6 | K53: 1 | L53: =D53*F53 -> 0 | M53: =L53/16 -> 0
C54: MSR 16 oz cannister-ask at Ad-Edge | D54: 0 | E54: item(s) | F54: 16 | K54: 1 | L54: 0 | M54: 0
A55: Cooking… total | L55: =SUM(L40:L51) -> 28.4 | M55: 1.775
A57: Hiking, travel | I57: include in pack weight, 0 = no
C58: Backpack, Osprey, Ejos | D58: 0 | E58: item(s) | F58: 43 | I58: 1 | L58: =D58*F58*I58 -> 0 | M58: =L58/16 -> 0
C59: Backpack, Osprey, Argon 85M | D59: 0 | E59: item(s) | F59: 104 | I59: 1 | L59: =D59*F59*I59 -> 0 | M59: =L59/16 -> 0
C60: Olive Jansport daypack | D60: 1 | E60: item(s) | F60: 17 | I60: 1 | L60: =D60*F60*I60 -> 17 | M60: =L60/16 -> 1.0625
C61: Binoculars | D61: 0 | E61: item(s) | F61: 8.5 | I61: 1 | L61: =D61*F61*I61 -> 0 | M61: =L61/16 -> 0
C62: Rifle, .30-06 | D62: 0 | E62: item(s) | F62: 144 | I62: 1 | L62: 0 | M62: 0
C63: Shoes, ankle high | D63: 0 | E63: item(s) | F63: 48 | I63: 0 | L63: 0 | M63: 0
C64: Shoes, running | D64: 0 | E64: item(s) | F64: 30 | I64: 0 | L64: 0 | M64: 0
C65: Sneakers | D65: 0 | E65: item(s) | F65: 29 | I65: 1 | L65: 0 | M65: 0
C66: Sandals | D66: 0 | E66: item(s) | F66: 19 | I66: 1 | L66: 0 | M66: 0
C67: Shoes, dress | D67: 1 | E67: item(s) | F67: 26 | I67: 1 | L67: 26 | M67: 1.625
C68: MSR Snowshoes | D68: 0 | E68: item(s) | F68: 59 | I68: 1 | L68: 0 | M68: 0
C69: … MSR Snowshoe extebsuibs | D69: 0 | E69: item(s) | F69: 17 | I69: 1 | L69: 0 | M69: 0
C70: Skis and poles | D70: 0 | E70: item(s) | F70: 118 | I70: 1 | L70: 0 | M70: 0
C71: Crampons | D71: 0 | E71: item(s) | F71: 40.75 | I71: 1 | L71: 0 | M71: 0
C72: Trekking poles, Leki | D72: 0 | E72: item(s) | F72: 20 | I72: 1 | L72: =D72*F72*I72 -> 0 | M72: =L72/16 -> 0
C73: Insect netting | D73: 0 | E73: item(s) | F73: 1.5 | I73: 1 | L73: 0 | M73: 0
C74: Pouch-misc items | D74: 0 | E74: item(s) | F74: 16.5 | I74: 1 | L74: 0 | M74: 0
C75: Albuterol | D75: 0 | E75: item(s) | F75: 1.5 | I75: 1 | L75: 0 | M75: 0
C76: Maps, paper | D76: 0 | E76: item(s) | F76: 9.5 | I76: 1 | L76: 0 | M76: 0
C77: Simple manual | D77: 0 | E77: item(s) | F77: 1 | I77: 1 | L77: 0 | M77: 0
C78: Camera | D78: 0 | E78: item(s) | F78: 6.5 | I78: 1 | L78: 0 | M78: 0
C79: Phone | D79: 0 | E79: item(s) | F79: 3.5 | I79: 1 | L79: 0 | M79: 0
C80: Cards, check, cash, key | D80: 0 | E80: item(s) | F80: 2 | I80: 1 | L80: 0 | M80: 0
C81: Batteries | D81: 0 | E81: item(s) | F81: 4.5 | I81: 1 | L81: 0 | M81: 0
C82: Watch | D82: 0 | E82: item(s) | F82: 2 | I82: 1 | L82: 0 | M82: 0
C83: Plastic bags | D83: 0 | E83: item(s) | F83: 0.5 | I83: 1 | L83: 0 | M83: 0
C85: H2O filter straw | D85: 0 | E85: item(s) | F85: 2 | I85: 1 | L85: =D85*F85*I85 -> 0 | M85: 0
C86: 64 oz Platypus H2O bladder | D86: 0 | E86: item(s) | F86: 6 | I86: 1 | L86: =D86*F86*I86 -> 0 | M86: 0
C87: 32 oz Nalgene H2O bottle | D87: 0 | E87: item(s) | F87: 7 | I87: 1 | L87: =D87*F87*I87 -> 0 | M87: 0
C88: H2O for platypus | D88: 0 | E88: oz | F88: 1 | G88: 64 | I88: 1 | L88: =D88*F88*G88*I88 -> 0 | M88: 0
C89: H2O for nalgene | D89: 0 | E89: oz | F89: 1 | G89: 32 | I89: 1 | L89: =D89*F89*G89*I89 -> 0 | M89: 0
A90: Hiking, total | L90: =SUM(L58:L89) -> 43 | M90: 2.6875
A92: Camping
C93: Tent (Nemo, Elite 1p) + footprint | D93: 0 | E93: items(s) | F93: 39 | L93: =D93*F93 -> 0 | M93: =L93/16 -> 0
C94: Tent (Sierra Designs, Flashlight) | D94: 0 | E94: items(s) | F94: 78 | L94: 0 | M94: 0
C95: Bivvy | D95: 0 | E95: items(s) | F95: 17 | L95: 0 | M95: 0
C96: Tarp 9'x9' | D96: 0 | E96: items(s) | F96: 33 | L96: 0 | M96: 0
C97: Tarp 8'x8' | D97: 0 | E97: items(s) | F97: 25 | L97: 0 | M97: 0
C98: Ground sheet (separate) | D98: 0 | E98: items(s) | F98: 13 | L98: 0 | M98: 0
C99: Sleeping bag, Western Mntnring | D99: 0 | E99: items(s) | F99: 18 | L99: 0 | M99: 0
C100: Sleeping bag, Marmot | D100: 0 | E100: items(s) | F100: 34 | L100: 0 | M100: 0
C101: Air mattress | D101: 0 | E101: items(s) | F101: 14.5 | L101: 0 | M101: 0
C102: Rope, straps | D102: 0 | E102: items(s) | F102: 3.5 | L102: 0 | M102: 0
C103: Med sack | D103: 0 | E103: items(s) | F103: 16 | L103: 0 | M103: 0
C104: Toilet | D104: 1 | E104: items(s) | F104: 3.5 | L104: 3.5 | M104: 0.21875
A105: Camping, total | L105: =SUM(L93:L104) -> 3.5 | M105: 0.21875
A107: Clothes | B107: * summer, general | D107: Count | G107: 1=take, 0=no | I107: include in pk wt, 0=no
C108: Lite cap shirt* | D108: 0 | E108: item(s) | F108: 4.25 | G108: 1 | I108: 1 | L108: =D108*F108*G108*I108 -> 0 | M108: =L108/16 -> 0
C109: Lite cap shirt, tee / long sleeve* | D109: 0 | E109: item(s) | F109: 4.25 | G109: 1 | I109: 1 | L109: =D109*F109*G109*I109 -> 0 | M109: =L109/16 -> 0
C110: Cap shirt, grey, hooded* | D110: 0 | E110: item(s) | F110: 5.5 | G110: 1 | I110: 1 | L110: 0 | M110: 0
C111: Steel grey warm shirt* | D111: 0 | E111: item(s) | F111: 10 | G111: 1 | I111: 0 | L111: 0 | M111: 0
C112: Mid wt cap z-neck | D112: 0 | E112: item(s) | F112: 9 | G112: 0 | I112: 1 | L112: 0 | M112: 0
C113: Collared shirt | D113: 1 | E113: item(s) | F113: 8 | G113: 0 | I113: 1 | L113: 0 | M113: 0
C114: Blk wind wall jacket, N Face | D114: 0 | E114: item(s) | F114: 26.5 | G114: 0 | I114: 1 | L114: 0 | M114: 0
C115: Blk lined jacket, N Face | D115: 0 | E115: item(s) | F115: 18 | G115: 0 | I115: 1 | L115: 0 | M115: 0
C116: Red wind wall jacket, Marmot | D116: 0 | E116: item(s) | F116: 23.5 | G116: 0 | I116: 1 | L116: 0 | M116: 0
C117: Rain jacket, Marmot* | D117: 1 | E117: item(s) | F117: 12.25 | G117: 1 | I117: 1 | L117: 12.25 | M117: 0.765625
C118: Rain jacket, Columbia | D118: 1 | E118: item(s) | F118: 18 | G118: 0 | I118: 1 | L118: 0 | M118: 0
C119: Down jacket, blue | D119: 1 | E119: item(s) | F119: 24 | G119: 0 | I119: 1 | L119: 0 | M119: 0
C120: Dress jacket | D120: 1 | E120: item(s) | F120: 26.5 | G120: 0 | I120: 1 | L120: 0 | M120: 0
C121: Gloves, lite | D121: 0 | E121: item(s) | F121: 1 | G121: 0 | I121: 1 | L121: 0 | M121: 0
C122: Sun-visor* | D122: 0 | E122: item(s) | F122: 2 | G122: 1 | I122: 1 | L122: 0 | M122: 0
C123: Hat | D123: 0 | E123: item(s) | F123: 5 | G123: 0 | I123: 1 | L123: 0 | M123: 0
C124: Lite cap long u'wear* | D124: 0 | E124: item(s) | F124: 4 | G124: 1 | I124: 0 | L124: 0 | M124: 0
C125: Lite cap long u'wear, spare* | D125: 0 | E125: item(s) | F125: 4 | G125: 1 | I125: 1 | L125: 0 | M125: 0
C126: Mid wt cap u'wear | D126: 0 | E126: item(s) | F126: 8 | G126: 0 | I126: 1 | L126: 0 | M126: 0
C127: Short u'wear* | D127: 0 | E127: item(s) | F127: 4 | G127: 1 | I127: 1 | L127: 0 | M127: 0
C128: Shorts* | D128: 0 | E128: item(s) | F128: 9 | G128: 1 | I128: 1 | L128: 0 | M128: 0
C129: Hiking pants* | D129: 0 | E129: item(s) | F129: 16 | G129: 1 | I129: 0 | L129: 0 | M129: 0
C130: Belt* | D130: 0 | E130: item(s) | F130: 2 | G130: 1 | I130: 0 | L130: 0 | M130: 0
C131: Jeans | D131: 1 | E131: item(s) | F131: 24 | G131: 1 | I131: 1 | L131: 24 | M131: 1.5
C132: Rain pants* | D132: 0 | E132: item(s) | F132: 9 | G132: 1 | I132: 1 | L132: 0 | M132: 0
C133: Heavy socks*, wear on travel | D133: 0 | E133: item(s) | F133: 4.5 | G133: 1 | I133: 0 | L133: 0 | M133: 0
C134: Heavy socks* | D134: 0 | E134: item(s) | F134: 4.5 | G134: 1 | I134: 1 | L134: 0 | M134: 0
C135: Intermediate sox | D135: 0 | E135: item(s) | F135: 3 | G135: 0 | I135: 1 | L135: 0 | M135: 0
C136: Lite sox* | D136: 0 | E136: item(s) | F136: 2 | G136: 1 | I136: 1 | L136: 0 | M136: 0
C137: Bandana* | D137: 0 | E137: item(s) | F137: 1 | G137: 1 | I137: 0 | L137: 0 | M137: 0
C138: MSR Towel* | D138: 0 | E138: item(s) | F138: 2 | G138: 1 | I138: 1 | L138: 0 | M138: 0
C139: Stuff sack* | D139: 0 | E139: item(s) | F139: 2 | G139: 1 | I139: 1 | L139: 0 | M139: 0
C140: … sack liner* | D140: 0 | E140: item(s) | F140: 1 | G140: 1 | I140: 1 | L140: 0 | M140: 0
C141: … sack straps* | D141: 0 | E141: item(s) | F141: 1 | G141: 1 | I141: 1 | L141: 0 | M141: 0
A142: Clothes, total | L142: =SUM(L108:L141) -> 36.25 | M142: 2.265625
A144: Total pack | L144: =L37+L55+L90+L105+L142 -> 202.5666667 | M144: =L144/16 -> 12.66041667

Sheet Planning
A1: Planning and preparation
B2: hiking list | C2: (html)
B3: hiking list-long | C3: (html)
B5: Main
C6: plan-prep aim-what-where-itinerary-travel > tickets, permits, hikes, air-forest conditions
C7: trial pack + hike-with-old-pack
C8: last min mail home, feet, fresh items
B10: Get
C11: hiking gear and supplies
C12: light stove
C13: town and camping supplies
C14: short sleeve t-shirt
C15: lite z-neck shirt
A18: Total pack weight for backpacking and travel = | F18: =Backpacking!M155+'Travel-camping'!L144 -> 725.6966667 | G18: oz | H18: =F18/16 -> 45.35604167 | I18: lb
